bitfinex-derivatives/quotes_ETHF0:USTF0_20250217
["timestamp","ask_amount","ask_price","bid_price","bid_amount"]
[1739813613376,0.551,2736.9,2736.8,3.21328516]
[1739813614778,1.28165,2736.9,2736.8,3.21328516]
[1739813615169,3.2078,2737.4,2736.8,3.21328516]
[1739813615366,2.759,2737.3,2736.8,3.21328516]
[1739813615571,3.48955,2737.3,2736.8,3.94393516]
[1739813615874,0.5708,2737.6,2737.2,3.2078]
[1739813616379,0.5708,2737.6,2737.2,3.93836]
[1739813616568,0.00548516,2737.7,2737.5,3.2078]
[1739813618185,0.73594516,2737.7,2737.5,3.2078]
[1739813618677,0.00548516,2737.7,2737.5,3.2078]
[1739813619074,0.73593516,2737.7,2737.5,3.2078]
[1739813619268,0.73592516,2737.7,2737.5,3.2078]
[1739813619469,0.00548516,2737.7,2737.5,3.2078]
[1739813619674,0.00548516,2737.7,2737.5,3.93829]
[1739813619974,0.00548516,2737.7,2737.6,0.73046]
[1739813620177,0.00548516,2737.7,2737.6,1.30566]
[1739813620377,2.759,2738.3,2737.6,5.21137774]
[1739813620679,3.3279,2738.5,2738.0,3.2078]
[1739813621376,0.73032,2738.2,2738.0,3.2078]
[1739813621582,3.3279,2738.5,2738.0,3.2078]
[1739813621583,0.73033,2738.1,2738.0,3.2078]
[1739813621976,3.33338516,2738.5,2738.0,3.2078]
[1739813622176,0.73033,2738.1,2738.0,3.2078]
[1739813622684,0.73031,2738.2,2738.0,3.2078]
[1739813622880,0.73033,2738.1,2738.0,3.2078]
[1739813623183,0.73027,2738.4,2738.0,3.2078]
[1739813623481,0.73025,2738.4,2738.0,3.2078]
[1739813623683,0.73028,2738.3,2738.0,3.2078]
[1739813623874,0.73031,2738.2,2738.0,3.2078]
[1739813624074,3.33338516,2738.5,2738.0,3.2078]
[1739813624271,0.73033,2738.2,2738.0,3.2078]
[1739813624482,3.33338516,2738.5,2738.0,3.2078]
[1739813624679,0.73033,2738.1,2738.0,3.2078]
[1739813625679,0.73029,2738.3,2738.0,3.2078]
[1739813625876,3.33338516,2738.5,2738.0,3.2078]
[1739813626081,0.73033,2738.1,2738.0,3.2078]
[1739813627079,2.758,2738.2,2738.0,3.2078]
[1739813627493,0.73033,2738.1,2738.0,3.2078]
[1739813628385,3.33238516,2738.5,2738.0,3.2078]
[1739813628585,0.73033,2738.1,2738.0,3.2078]
[1739813628893,3.33238516,2738.5,2738.0,3.2078]
[1739813629194,5.15797516,2738.5,2738.0,3.2078]
[1739813629397,0.73033,2738.1,2738.0,3.2078]
[1739813629892,3.2078,2738.3,2737.7,3.2078]
[1739813630091,0.73041,2737.8,2737.7,3.2078]
[1739813630887,1.27461,2737.8,2737.7,3.2078]
[1739813632294,0.7306,2737.1,2737.0,9.6]
[1739813632487,6.5442,2737.8,2736.9,3.2078]
[1739813632488,0.73058,2737.2,2736.9,3.2078]
[1739813632893,0.73061,2737.1,2736.9,3.2078]
[1739813633705,0.7306,2737.1,2736.9,3.2078]
[1739813633893,0.73059,2737.2,2736.9,3.2078]
[1739813634092,0.73062,2737.0,2736.9,3.2078]
[1739813635296,0.5294,2737.2,2736.9,3.2078]
[1739813635804,0.7306,2737.1,2736.9,3.2078]
[1739813636303,0.73062,2737.0,2736.9,3.2078]
[1739813636502,1.25998,2737.2,2736.9,3.2078]
[1739813636703,0.5294,2737.2,2736.9,3.2078]
[1739813637006,0.73061,2737.1,2736.9,3.2078]
[1739813637302,0.7306,2737.1,2736.9,3.2078]
[1739813637597,0.73062,2737.0,2736.9,3.2078]
[1739813638003,0.5294,2737.2,2736.9,3.2078]
[1739813638399,2.757,2737.3,2736.9,3.2078]
[1739813638602,0.73062,2737.0,2736.9,3.2078]
[1739813638802,2.757,2737.3,2736.9,3.2078]
[1739813639002,0.73062,2737.0,2736.9,3.2078]
[1739813639503,2.757,2737.3,2736.8,0.00548516]
[1739813639705,0.73065,2737.0,2736.8,0.00548516]
[1739813639909,0.73065,2736.9,2736.8,0.00548516]
[1739813640499,0.00548516,2737.1,2736.8,0.00548516]
[1739813640703,0.00548516,2737.1,2736.9,3.2078]
[1739813641109,0.73609516,2737.1,2736.9,3.2078]
[1739813641511,0.00548516,2737.1,2736.9,3.2078]
[1739813641712,0.73608516,2737.1,2736.9,3.2078]
[1739813642013,0.73062,2737.0,2736.9,3.2078]
[1739813642507,0.00548516,2737.1,2736.9,3.2078]
[1739813642715,0.00548516,2737.1,2737.0,0.5582]
[1739813643013,5.9648,2737.7,2737.0,0.5582]
[1739813643417,0.73058,2737.2,2737.0,0.5582]
[1739813644112,0.73048,2737.6,2737.0,1.28881]
[1739813644306,5.9648,2737.7,2737.0,0.5582]
[1739813644508,6.69526,2737.7,2737.1,0.73059]
[1739813644711,0.73048,2737.6,2737.0,1.824]
[1739813644905,0.73048,2737.6,2737.2,3.2078]
[1739813645107,3.93817,2738.0,2737.5,3.2078]
[1739813645415,2.756,2738.3,2737.9,3.2078]
[1739813645616,3.48628,2738.3,2737.9,3.2078]
[1739813645804,2.756,2738.3,2737.9,3.2078]
[1739813646212,0.73035,2738.1,2737.9,3.2078]
[1739813646412,0.73032,2738.2,2737.9,3.2078]
[1739813646617,1.071,2738.4,2737.7,0.5352]
[1739813646817,0.73029,2738.3,2737.9,3.2078]
[1739813647017,1.071,2738.4,2737.9,3.2078]
[1739813647512,0.73035,2738.1,2737.9,3.2078]
[1739813647817,0.73036,2738.0,2737.9,3.2078]
[1739813648114,4.7041118,2738.7,2737.9,3.2078]
[1739813648115,2.756,2739.0,2737.9,7.54631179]
[1739813648314,3.8112,2739.0,2738.2,3.2078]
[1739813648509,3.8112,2739.0,2738.3,1.0863]
[1739813648713,0.73012,2738.9,2738.3,1.0863]
[1739813649017,0.73012,2738.9,2738.5,3.2078]
[1739813649225,3.8112,2739.0,2738.5,3.2078]
[1739813649411,1.0552,2739.0,2738.5,3.2078]
[1739813649720,1.78529,2739.0,2738.5,3.2078]
[1739813650011,3.7573,2739.5,2738.8,3.2078]
[1739813650217,0.73006,2739.2,2738.9,0.5387]
[1739813650608,3.7573,2739.5,2738.9,0.5387]
[1739813650805,5.9628,2739.5,2738.9,0.5387]
[1739813651018,0.73005,2739.2,2738.9,0.5387]
[1739813651316,5.9628,2739.5,2738.9,0.5370761]
[1739813651517,7.78771,2739.5,2738.9,0.5370761]
[1739813651717,0.73007,2739.1,2738.9,0.5370761]
[1739813651910,7.78771,2739.5,2738.9,0.5370761]
[1739813652107,0.73009,2739.0,2738.9,0.5370761]
[1739813652506,5.9628,2739.5,2738.9,0.5370761]
[1739813652507,0.73007,2739.1,2738.9,0.5370761]
[1739813653109,1.82496,2739.4,2738.8,3.2078]
[1739813653310,3.2078,2739.2,2738.3,3.769]
[1739813653517,0.73028,2738.3,2738.2,0.00548516]
[1739813654217,3.48428,2738.3,2738.2,0.00548516]
[1739813654415,3.48428,2738.3,2737.4,3.2078]
[1739813654416,2.754,2738.3,2737.4,3.2078]
[1739813654618,0.5711,2738.5,2737.4,3.2078]
[1739813654819,0.73027,2738.4,2737.8,3.9382]
[1739813655020,0.5711,2738.5,2737.8,3.9382]
[1739813655021,0.73028,2738.3,2737.9,0.5464]
[1739813655222,2.754,2738.8,2738.1,3.2078]
[1739813655724,0.73028,2738.3,2738.2,0.00548516]
[1739813656820,0.73026,2738.4,2738.2,0.00548516]
[1739813657129,0.53748516,2738.7,2738.2,0.00548516]
[1739813657525,0.73028,2738.3,2738.2,0.00548516]
[1739813657722,0.53748516,2738.7,2738.2,0.00548516]
[1739813657921,0.7302,2738.6,2738.2,0.00548516]
[1739813658126,0.00548516,2738.7,2738.2,0.73577516]
[1739813658323,0.73567516,2738.7,2738.2,0.73577516]
[1739813658529,0.7302,2738.6,2738.2,0.73577516]
[1739813658720,0.00548516,2738.7,2738.2,0.00548516]
[1739813659025,0.7302,2738.6,2738.2,9.60548516]
[1739813659224,0.00548516,2738.7,2738.2,9.60548516]
[1739813659428,0.00548516,2738.7,2738.2,10.33576516]
[1739813659618,0.73566516,2738.7,2738.2,10.33576516]
[1739813660022,0.73021,2738.6,2738.2,9.60548516]
[1739813660324,0.00548516,2738.7,2738.2,10.33578516]
[1739813660527,0.00548516,2738.7,2738.2,9.60548516]
[1739813660931,0.73024,2738.5,2738.2,0.00548516]
[1739813661230,0.73026,2738.4,2738.2,0.00548516]
[1739813661729,0.73027,2738.4,2738.2,0.00548516]
[1739813662433,0.00548516,2738.7,2738.2,0.00548516]
[1739813662634,0.73566516,2738.7,2738.2,0.00548516]
[1739813662926,0.00548516,2738.7,2738.2,0.00548516]
[1739813663324,0.73021,2738.6,2738.2,0.00548516]
[1739813663630,0.00548516,2738.7,2738.2,0.73577516]
[1739813663931,0.00548516,2738.7,2738.2,0.00548516]
[1739813664131,0.73566516,2738.7,2738.2,0.73578516]
[1739813664431,0.00548516,2738.7,2738.2,0.73578516]
[1739813664837,0.00548516,2738.7,2738.2,0.00548516]
[1739813665027,0.00548516,2738.7,2738.3,0.73027]
[1739813665334,0.73566516,2738.7,2738.2,0.73577516]
[1739813665540,0.00548516,2738.7,2738.2,0.00548516]
[1739813665725,0.00548516,2738.7,2738.6,0.7302]
[1739813666129,0.72986,2739.9,2739.3,0.73001]
[1739813666336,0.72989,2739.8,2739.4,3.2078]
[1739813666532,0.72991,2739.7,2739.4,3.2078]
[1739813667042,2.753,2740.1,2739.4,3.2078]
[1739813667230,0.72981,2740.1,2739.4,3.2078]
[1739813667535,0.72983,2740.0,2739.5,0.5249]
[1739813668035,0.72983,2740.0,2739.5,0.53037495]
[1739813668332,7.0458,2740.2,2739.5,0.53037495]
[1739813668539,0.72991,2739.7,2739.5,0.53037495]
[1739813668839,0.72993,2739.6,2739.5,0.53037495]
[1739813669034,8.87024,2740.2,2739.5,0.53037495]
[1739813669333,7.0458,2740.2,2739.5,0.53037495]
[1739813669534,7.0458,2740.2,2739.5,0.00547495]
[1739813669535,1.8245,2740.1,2739.5,0.00547495]
[1739813669730,0.72993,2739.6,2739.5,0.00547495]
[1739813669933,2.752,2739.6,2738.5,3.7712]
[1739813670239,1.82503,2739.3,2738.5,3.7712]
[1739813670428,9.37127179,2739.4,2738.5,3.7712]
[1739813670636,0.73013,2738.9,2738.5,3.7712]
[1739813671337,6.16347179,2739.4,2738.5,3.7712]
[1739813671338,0.73554091,2739.0,2738.5,3.7712]
[1739813671537,0.00544091,2739.0,2738.5,4.50142]
[1739813671933,0.73553091,2739.0,2738.5,4.50142]
[1739813672636,2.52676768,2791.4,2738.5,4.50142]
[1739813672637,3.2078,2741.5,2739.4,3.2078]
[1739813672831,0.5395,2741.6,2741.4,4.33851179]
[1739813673038,0.5323,2741.5,2741.1,3.2078]
[1739813673237,26.3,2741.4,2741.1,3.2078]
[1739813673627,27.02946,2741.4,2740.8,3.2078]
[1739813673840,26.3,2741.4,2741.0,0.00547495]
[1739813674236,27.02945,2741.4,2741.0,0.00547495]
[1739813674737,26.3,2741.4,2741.0,0.00547495]
[1739813674941,0.72953,2741.1,2741.0,0.00547495]
[1739813675643,1.09513001,2741.1,2741.0,0.00547495]
[1739813676141,27.39513001,2741.1,2741.0,0.00547495]
[1739813676648,26.66560001,2741.1,2741.0,0.00547495]
[1739813676834,29.062,2741.1,2741.0,0.00547495]
[1739813677142,26.3,2741.1,2741.0,4.34398674]
[1739813677441,0.5323,2741.5,2741.0,5.07354674]
[1739813677641,0.5323,2741.5,2741.3,7.54631179]
[1739813678144,0.5395,2741.6,2741.3,7.54631179]
[1739813678738,3.3035,2741.6,2741.3,7.54631179]
[1739813680340,0.5719,2742.0,2741.3,7.54631179]
[1739813680646,3.3319,2742.0,2741.5,3.2078]
[1739813680836,0.7294,2741.6,2741.5,3.2078]
[1739813681641,27.0294,2741.6,2741.5,3.2078]
[1739813684647,29.7794,2741.6,2741.5,3.2078]
[1739813686152,26.3,2741.6,2741.5,3.2078]
[1739813686342,29.7794,2741.6,2741.5,3.2078]
[1739813690157,27.0294,2741.6,2741.5,3.2078]
[1739813690339,3.4794,2741.6,2741.5,3.2078]
[1739813694152,26.3,2741.8,2741.5,3.2078]
[1739813694353,0.7294,2741.6,2741.5,3.2078]
[1739813701148,2.749,2741.8,2741.5,3.2078]
[1739813701357,0.7294,2741.6,2741.5,3.2078]
[1739813703554,2.749,2741.8,2741.5,3.2078]
[1739813704059,0.7294,2741.6,2741.5,3.2078]
[1739813708964,2.749,2741.6,2741.5,3.2078]
[1739813709360,3.4784,2741.6,2741.5,3.2078]
[1739813709562,0.5719,2742.0,2741.5,3.2078]
[1739813709759,3.47832,2741.9,2741.8,3.2078]
[1739813710359,0.5719,2742.0,2741.8,3.2078]
[1739813710559,2.749,2742.3,2741.9,3.45090037]
[1739813710759,2.749,2742.3,2742.2,3.2078]
[1739813710967,4.1441,2742.7,2742.2,3.2078]
[1739813711159,0.72921,2742.3,2742.2,3.2078]
[1739813711867,0.72921,2742.4,2742.2,3.2078]
[1739813712066,3.1138,2742.6,2742.2,3.2078]
[1739813712067,0.72921,2742.3,2742.2,3.2078]
[1739813712268,0.72916,2742.5,2742.2,3.2078]
[1739813712571,2.748,2742.8,2742.4,4.32269874]
[1739813712865,3.47708,2742.8,2742.7,3.2078]
[1739813713064,0.72918,2742.5,2742.4,3.2078]
[1739813715063,1.09398,2742.5,2742.4,3.2078]
[1739813715265,0.72921,2742.3,2742.2,0.00547495]
[1739813715473,0.3648,2742.5,2742.2,0.00547495]
[1739813715867,1.09398,2742.5,2742.2,0.00547495]
[1739813716064,0.3648,2742.8,2742.4,3.2078]
[1739813716268,2.748,2743.0,2742.5,0.5694]
[1739813716569,0.72911,2742.7,2742.5,0.5694]
[1739813716771,2.748,2743.0,2742.5,0.5694]
[1739813716971,0.72913,2742.6,2742.5,0.5694]
[1739813717466,2.748,2743.0,2742.5,0.5694]
[1739813717669,0.72901,2743.1,2742.7,3.2078]
[1739813717871,2.748,2743.0,2742.7,3.2078]
[1739813718268,0.72905,2742.9,2742.7,3.2078]
[1739813718876,2.748,2743.0,2742.7,3.2078]
[1739813719167,0.5358,2743.2,2742.7,3.2078]
[1739813719372,2.748,2743.0,2742.7,3.2078]
[1739813719965,0.72906,2742.9,2742.7,3.2078]
[1739813720166,0.5358,2743.2,2742.7,3.2078]
[1739813720470,0.5432,2743.8,2743.0,7.53049874]
[1739813720471,0.3648,2743.8,2743.0,7.53049874]
[1739813720675,3.47584,2743.7,2743.3,3.2078]
[1739813720974,0.72887,2743.6,2743.4,4.32269874]
[1739813721175,0.3648,2744.1,2743.4,4.32269874]
[1739813721469,2.747,2744.0,2743.6,3.2078]
[1739813721868,0.72883,2743.8,2743.6,3.2078]
[1739813722069,2.747,2744.0,2743.6,3.2078]
[1739813722270,2.747,2744.0,2743.7,0.5617]
[1739813722465,0.72881,2743.8,2743.7,0.5617]
[1739813723571,0.72886,2743.6,2743.5,0.00547495]
[1739813724467,27.02886,2743.6,2743.5,0.00547495]
[1739813724671,27.02886,2743.6,2742.7,4.85199874]
[1739813724672,35.5078,2743.6,2742.9,3.2078]
[1739813724869,4.4349,2743.5,2742.9,3.2078]
[1739813725073,4.62011,2743.5,2743.2,3.2078]
[1739813725273,3.8912,2743.5,2743.2,3.2078]
[1739813725477,0.72885,2743.7,2743.3,0.72894]
[1739813725778,0.72884,2743.7,2743.3,1.1284]
[1739813726076,0.72889,2743.6,2743.3,1.1284]
[1739813726275,0.72889,2743.6,2743.5,3.2078]
[1739813726480,3.48129495,2743.8,2743.5,3.2078]
[1739813726775,0.00776415,2743.8,2743.7,5.05153874]
[1739813727681,3.5726,2744.6,2743.7,5.05153874]
[1739813727682,0.72861,2744.6,2743.7,10.32269874]
[1739813727972,2.746,2745.4,2744.5,7.53049874]
[1739813728172,0.72844,2745.2,2744.9,3.2078]
[1739813728773,0.72848,2745.1,2744.9,3.2078]
[1739813728971,2.746,2745.5,2744.9,3.2078]
[1739813729275,0.72849,2745.0,2744.9,3.2078]
[1739813729474,0.72848,2745.1,2744.9,3.2078]
[1739813729774,0.72849,2745.0,2744.9,3.2078]
[1739813729982,0.72852,2744.9,2744.8,0.00546458]
[1739813730178,3.47452,2744.9,2744.8,0.00546458]
[1739813730769,0.72871,2744.2,2744.1,0.5361]
[1739813730972,0.72873,2744.1,2744.0,3.2078]
[1739813731178,2.746,2744.4,2742.1,0.3648]
[1739813731179,0.72881,2743.8,2743.7,3.2078]
[1739813731585,26.3,2743.8,2743.7,3.2078]
[1739813732080,3.4748,2743.9,2743.7,3.2078]
[1739813732283,2.746,2743.9,2743.7,3.2078]
[1739813732875,3.47481,2743.9,2743.7,3.2078]
[1739813733082,2.746,2743.9,2743.7,3.2078]
[1739813733480,3.4748,2743.9,2743.7,3.2078]
[1739813733678,2.746,2743.9,2743.7,3.2078]
[1739813734286,0.00543001,2744.0,2743.8,4.86759874]
[1739813734479,0.00543001,2744.0,2743.8,5.59639874]
[1739813734878,3.2078,2745.2,2743.8,10.86759874]
[1739813735076,0.72853,2744.9,2744.6,3.2078]
[1739813735278,5.9538,2745.2,2744.6,3.2078]
[1739813735582,0.7285,2745.0,2744.6,3.2078]
[1739813735985,0.72852,2744.9,2744.6,3.2078]
[1739813736285,5.9538,2745.2,2744.6,3.2078]
[1739813736485,0.72854,2744.9,2744.6,3.2078]
[1739813736887,0.72857,2744.7,2744.6,3.2078]
[1739813743286,3.2078,2744.8,2744.2,3.2078]
[1739813743487,0.72876,2744.0,2743.9,0.5678]
[1739813743796,2.745,2744.9,2743.8,3.2078]
[1739813743797,0.72879,2743.9,2743.8,3.2078]
[1739813746285,0.72878,2744.0,2743.8,3.2078]
[1739813746792,0.72879,2743.9,2743.8,3.2078]
[1739813746992,2.3679,2744.7,2743.8,3.93659]
[1739813747199,2.745,2744.4,2744.1,3.2078]
[1739813747387,0.72869,2744.3,2744.1,3.2078]
[1739813747994,2.745,2744.4,2744.1,3.2078]
[1739813747995,0.72866,2744.4,2744.1,3.2078]
[1739813748189,0.72866,2744.4,2744.2,0.5494]
[1739813748397,0.72861,2744.6,2744.2,0.5494]
[1739813748591,0.72863,2744.5,2744.3,0.547]
[1739813748796,0.72862,2744.6,2744.3,0.547]
[1739813748999,0.72863,2744.5,2744.3,0.547]
[1739813749202,0.72861,2744.6,2744.3,0.547]
[1739813749407,0.7286,2744.7,2744.3,0.547]
[1739813749608,2.745,2744.9,2744.3,0.547]
[1739813749810,0.72859,2744.7,2744.3,0.547]
[1739813750007,0.72854,2744.9,2744.5,3.2078]
[1739813750204,0.72853,2744.9,2744.5,3.2078]
[1739813750402,5.9528,2745.0,2744.5,3.2078]
[1739813750805,1.0695,2745.4,2744.8,3.2078]
[1739813751004,0.72844,2745.2,2745.1,3.2078]
[1739813751811,0.72849,2745.0,2744.9,0.00546458]
[1739813755006,3.1088,2745.3,2744.9,0.00546458]
[1739813755205,0.72848,2745.1,2744.9,0.00546458]
[1739813755414,0.72849,2745.0,2744.9,0.00546458]
[1739813755705,2.744,2745.3,2744.9,0.00546458]
[1739813755911,0.72844,2745.2,2745.1,3.2078]
[1739813757209,0.3648,2745.7,2745.1,3.2078]
[1739813757410,0.72835,2745.6,2745.4,3.2078]
[1739813757714,0.72836,2745.5,2745.4,3.2078]
[1739813758415,0.72836,2745.5,2744.9,0.00546458]
[1739813758416,0.72849,2745.0,2744.9,3.21326458]
[1739813758611,2.744,2745.2,2744.9,3.21326458]
[1739813759110,2.744,2745.2,2745.0,4.32269874]
[1739813759411,2.744,2745.5,2744.9,3.21326458]
[1739813759611,0.72839,2745.4,2745.3,3.2078]
[1739813760406,3.47238,2745.5,2745.3,3.2078]
[1739813760610,0.72839,2745.4,2745.3,3.2078]
[1739813762713,0.72835,2745.6,2745.3,3.2078]
[1739813762913,0.72836,2745.5,2745.3,3.2078]
[1739813763216,0.72839,2745.4,2745.3,3.2078]
[1739813763415,2.743,2745.6,2745.3,3.2078]
[1739813763612,0.5774,2745.8,2745.3,7.53049874]
[1739813763915,0.3648,2746.3,2745.7,3.2078]
[1739813764105,0.3648,2746.6,2746.0,3.2078]
[1739813764106,2.743,2746.4,2746.0,3.2078]
[1739813764310,0.72816,2746.3,2746.0,3.2078]
[1739813764716,2.743,2746.4,2746.0,3.2078]
[1739813765115,0.7282,2746.1,2746.0,3.2078]
[1739813765315,1.82049,2746.2,2745.7,3.2078]
[1739813765518,0.72828,2745.8,2745.7,3.2078]
[1739813765713,3.47128,2745.8,2745.7,3.2078]
[1739813769818,39.37668,2747.4,2745.7,3.2078]
[1739813769819,0.3648,2746.6,2745.7,3.2078]
[1739813770021,0.72812,2746.4,2746.3,3.2078]
[1739813770415,0.3648,2747.1,2746.3,3.2078]
[1739813770615,0.72799,2746.9,2746.8,3.2078]
[1739813771020,0.72807,2746.6,2746.5,3.2078]
[1739813771320,2.742,2746.9,2746.5,3.2078]
[1739813771517,0.72807,2746.6,2746.5,3.2078]
[1739813772815,9.7671,2746.6,2746.4,0.00546458]
[1739813773011,0.72831,2745.7,2745.6,3.2078]
[1739813773215,0.72831,2745.7,2744.9,4.32269874]
[1739813773216,0.72839,2745.4,2745.3,3.2078]
[1739813773611,0.5593,2745.6,2745.3,3.2078]
[1739813773816,1.28766,2745.6,2745.3,3.2078]
[1739813774117,2.74746458,2745.7,2745.6,0.72832]
[1739813774319,2.74746458,2745.7,2745.6,3.2078]
[1739813774716,0.00546458,2745.7,2745.6,3.2078]
[1739813775320,0.73377458,2745.7,2745.6,3.2078]
[1739813776018,0.00546458,2745.7,2745.6,3.2078]
[1739813776518,0.00546458,2745.7,2745.6,3.93613]
[1739813776718,0.72818,2746.2,2745.8,4.32269874]
[1739813776719,2.742,2746.2,2745.8,4.32269874]
[1739813776923,2.742,2746.2,2746.1,3.2078]
[1739813777315,0.72812,2746.5,2746.1,3.2078]
[1739813777511,2.742,2746.3,2746.1,3.2078]
[1739813777726,3.47016,2746.3,2746.1,3.2078]
[1739813777930,3.47015,2746.3,2746.1,3.2078]
[1739813778116,2.742,2746.3,2746.1,3.2078]
[1739813778517,3.47016,2746.3,2746.1,3.2078]
[1739813779217,2.742,2746.3,2746.1,3.2078]
[1739813779419,3.47016,2746.3,2746.1,3.2078]
[1739813779614,0.72828,2745.8,2745.7,3.2078]
[1739813779827,3.47028,2745.8,2745.7,3.2078]
[1739813780323,2.742,2745.8,2745.4,3.2078]
[1739813780714,0.72836,2745.5,2745.4,3.2078]
[1739813780913,2.742,2745.8,2745.4,3.2078]
[1739813781122,0.72836,2745.5,2745.4,3.2078]
[1739813781928,2.742,2745.8,2745.4,3.2078]
[1739813782319,0.72833,2745.7,2745.4,3.2078]
[1739813782624,0.72823,2746.1,2745.6,5.05102874]
[1739813782834,0.72823,2746.0,2745.9,3.2078]
[1739813783119,0.7282,2746.2,2745.9,3.2078]
[1739813783327,0.72823,2746.0,2745.9,3.2078]
[1739813784628,3.46923,2746.0,2745.9,3.2078]
[1739813785429,1.82072,2745.8,2745.4,3.2078]
[1739813785625,0.72836,2745.5,2745.4,3.2078]
[1739813786129,2.741,2745.5,2745.4,3.2078]
[1739813787818,1.82037,2746.4,2745.4,3.2078]
[1739813788022,3.4692,2746.2,2745.7,0.7283]
[1739813788217,0.72824,2746.0,2745.8,1.1034]
[1739813788422,0.72823,2746.1,2745.8,1.1034]
[1739813788632,0.72823,2746.0,2745.8,1.1034]
[1739813789325,0.72825,2745.9,2745.8,1.1034]
[1739813789531,0.72825,2745.9,2745.8,0.5596]
[1739813790029,2.741,2746.2,2745.8,0.5596]
[1739813790225,0.72824,2746.0,2745.8,0.5596]
[1739813790426,2.741,2746.2,2745.8,0.5596]
[1739813790927,0.72825,2745.9,2745.8,0.5596]
[1739813791128,1.82067,2745.9,2745.4,3.2078]
[1739813791329,2.39041,2746.1,2745.4,3.2078]
[1739813791529,1.82058,2746.0,2745.4,3.2078]
[1739813791728,0.72832,2745.7,2745.4,3.2078]
[1739813791930,0.5287,2745.9,2745.4,3.2078]
[1739813792132,0.72836,2745.5,2745.4,3.2078]
[1739813793126,0.72841,2745.3,2745.1,3.2078]
[1739813793931,0.72857,2744.7,2744.6,3.2078]
[1739813794127,3.46957,2744.7,2744.6,3.2078]
[1739813794929,3.46957,2744.7,2744.0,0.5341]
[1739813794930,2.741,2744.7,2744.0,0.5341]
[1739813795134,2.741,2744.6,2744.4,0.00546458]
[1739813795336,0.72863,2744.5,2744.4,0.00546458]
[1739813796638,1.79129,2744.6,2744.4,0.00546458]
[1739813796837,0.72863,2744.5,2744.4,0.00546458]
[1739813797031,1.29733,2744.5,2744.4,0.00546458]
[1739813797730,6.5687,2744.5,2743.7,3.2078]
[1739813797937,0.7288,2743.9,2743.7,3.2078]
[1739813798132,2.741,2743.9,2743.7,3.2078]
[1739813798332,3.46979,2743.9,2743.7,3.2078]
[1739813798637,2.741,2743.9,2743.8,0.72881]
[1739813798836,2.741,2743.9,2743.8,0.5638]
[1739813799634,2.741,2744.4,2743.9,0.72876]
[1739813799839,2.741,2744.4,2744.1,3.2078]
[1739813800335,3.46967,2744.4,2744.1,3.2078]
[1739813800535,0.72869,2744.3,2744.1,3.2078]
[1739813800737,0.72871,2744.2,2744.1,3.2078]
[1739813802033,0.7286,2744.6,2744.1,3.2078]
[1739813802238,0.72863,2744.5,2744.4,3.2078]
[1739813803442,0.72871,2744.2,2744.1,3.2078]
[1739813803643,2.742,2744.6,2743.8,3.2078]
[1739813803644,0.72879,2743.9,2743.8,3.2078]
[1739813804937,2.91774,2744.3,2743.8,3.2078]
[1739813804938,0.72877,2744.0,2743.8,3.2078]
[1739813805446,0.72879,2743.9,2743.8,3.2078]
[1739813805636,0.72878,2744.0,2743.8,3.2078]
[1739813806545,0.72876,2744.1,2743.8,3.2078]
[1739813807041,2.741,2744.5,2744.0,4.32269874]
[1739813807240,2.741,2744.5,2744.2,3.2078]
[1739813807543,1.1446,2744.8,2744.2,3.2078]
[1739813807739,3.47058,2744.7,2744.3,1.0961]
[1739813807935,0.7286,2744.6,2744.3,1.0961]
[1739813808135,0.72862,2744.6,2744.3,1.0961]
[1739813808335,3.47059,2744.7,2744.3,1.82477]
[1739813808546,2.742,2744.7,2744.5,3.2078]
[1739813808840,0.00546458,2744.9,2744.6,4.32269874]
[1739813809047,0.00546458,2744.9,2744.8,3.2078]
[1739813809943,0.00546458,2744.9,2744.4,3.2078]
[1739813810142,0.72863,2744.5,2744.4,3.2078]
[1739813810749,1.1488,2744.8,2744.1,0.5573]
[1739813810750,2.741,2744.7,2744.1,3.2078]
[1739813810943,0.72871,2744.2,2744.1,3.2078]
[1739813811441,0.72879,2743.9,2743.8,1.0933]
[1739813811644,3.46972,2744.2,2743.8,1.0933]
[1739813811941,0.72879,2743.9,2743.8,1.0933]
[1739813812545,0.72877,2744.0,2743.8,1.0933]
[1739813812745,0.72879,2743.9,2743.8,1.0933]
[1739813812947,3.2078,2744.6,2743.9,0.72878]
[1739813813147,0.72867,2744.4,2743.9,0.72878]
[1739813813541,0.72867,2744.4,2744.0,3.2078]
[1739813813753,3.8486,2744.5,2744.0,3.2078]
[1739813813955,0.7287,2744.3,2744.0,3.2078]
[1739813814248,3.8486,2744.5,2744.0,3.2078]
[1739813814441,0.72872,2744.2,2744.0,3.2078]
[1739813814647,0.72873,2744.1,2744.0,3.2078]
[1739813814853,3.8486,2744.5,2743.8,1.0933]
[1739813815048,1.82164,2744.4,2743.8,1.0933]
[1739813815248,0.72878,2744.0,2743.8,1.0933]
[1739813815845,0.7287,2744.3,2743.8,1.82209]
[1739813816048,0.7287,2744.3,2743.9,0.72878]
[1739813816349,0.72877,2744.0,2743.8,1.0933]
[1739813817051,1.82164,2744.4,2743.8,1.0933]
[1739813817252,0.72877,2744.0,2743.8,1.0933]
[1739813817450,1.82164,2744.4,2743.8,1.0933]
[1739813817750,0.72879,2743.9,2743.8,1.0933]
[1739813817948,3.2078,2744.6,2743.8,1.0933]
[1739813818249,0.72865,2744.4,2744.0,7.53049874]
[1739813818451,0.72869,2744.3,2744.0,7.53049874]
[1739813818949,2.741,2744.5,2744.0,3.2078]
[1739813819146,2.741,2744.5,2744.0,3.93655]